Cogmind - Beta 15 @@@ ROGUE MODE // 2025.07.25 @ 00:28:05 Player: Cracklepappy Result: Destroyed by CL-ANK with CL-ANK's Mallet Performance ------------- Evolutions (1) 500 Regions Visited (6) 1200 Robots Destroyed (110) 550 Value Destroyed (2011) 2011 Prototype IDs (43) 860 Alien Tech Used (0) 0 Bonus (502) 502 TOTAL SCORE: 5623 Bonus ------- High Alert Combat Kills 99 Follower Combat Kills 127 Aligned with FarCom 300 Friendly Fire -24 Cogmind --------- Core Integrity 0/400 Matter 120/300 Energy 308/310 System Corruption 0% Temperature Warm (170) Movement Rolling (135) Ox3 Location -8/Mines Parts ------- > --- POWER (1) -------- Heavy Deuterium Engine > --- PROPULSION (2) --- Wheel Compact Wheel > --- UTILITY (2) ------ Huge Storage Unit Advanced Weapon Cycler > --- WEAPON (4) ------- XL Autogun Subcomponent XL Autogun Subcomponent XL Autogun Subcomponent XL Autogun Subcomponent > --- INVENTORY (25) --- Makeshift Power Source Cold Fusion Reactor Compact Wheel Compact Wheel Experimental Heat Sink High-capacity Storage Unit High-capacity Matter Pod (129) High-capacity Matter Pod (0) Transport Network Coupler Advanced Launcher Guidance Computer Improved Target Analyzer Experimental Core Analyzer Improved Armor Integrity Analyzer Heavy Assault Rifle Heavy Assault Rifle Autogun Autogun Autogun Autogun Autogun Heavy Assault Cannon Rocket Launcher Improved Datajack Plasma Cutter Peak State ------------ > --- POWER ------------ Cooled Ion Engine > --- PROPULSION ------- Wheel Wheel > --- UTILITY ---------- Improved Heat Sink Huge Storage Unit > --- WEAPON ----------- XL Autogun Array > --- INVENTORY -------- Light Nuclear Core Compact Wheel Compact Wheel Experimental Heat Sink High-capacity Matter Pod High-capacity Matter Pod Advanced Weapon Cycler Light Armor Plating Heavy Assault Rifle Heavy Assault Rifle Autogun Autogun Autogun Autogun Autogun Autogun Autogun Autogun Improved Assault Rifle Improved Assault Rifle Improved Assault Rifle Rocket Launcher Longsword +1 [Rating: 51] Favorites ----------- Power Cooled Ion Engine Engine Cooled Ion Engine Power Core Light Nuclear Core Reactor Cold Fusion Reactor Propulsion Wheel Wheel Wheel Utility Huge Storage Unit Device Improved Heat Sink Storage Huge Storage Unit Processor Targeting Computer Protection Light Armor Plating Weapon Improved Assault Rifle Energy Gun Medium Laser Energy Cannon Ion Cannon Ballistic Gun Improved Assault Rifle Ballistic Cannon Heavy Assault Cannon Launcher Rocket Launcher Special Weapon Mining Laser Special Melee Weapon Improved Datajack Build | -11 -10 -10 -9 -9 -9 -8 ------- Run | Yrd Mat Min Mat Min Exi Min Slots Evolved 2 | . . . 2 . . . Power . | . . . . . . . Propulsion . | . . . . . . . Utility . | . . . . . . . Weapon 2 | . . . 2 . . . Parts Attached 84 | 7 17 4 30 3 21 2 Power 7 | 1 1 . 2 . 3 . Engine 5 | 1 1 . 2 . 1 . Core 1 | . . . . . 1 . Reactor 1 | . . . . . 1 . Propulsion 16 | 2 3 2 5 2 2 . Treads . | . . . . . . . Leg . | . . . . . . . Wheel 16 | 2 3 2 5 2 2 . Hover . | . . . . . . . Flight . | . . . . . . . Utility 17 | 2 6 1 6 . 2 . Device 5 | 1 1 . 2 . 1 . Storage 7 | 1 3 . 2 . 1 . Processor 1 | . 1 . . . . . Hackware . | . . . . . . . Protection 4 | . 1 1 2 . . . Artifact . | . . . . . . . Weapon 44 | 2 7 1 17 1 14 2 Energy Gun 6 | 1 3 . 2 . . . Energy Cannon 5 | . . . 5 . . . Ballistic Gun 25 | 1 2 1 6 . 13 2 Ballistic Cannon 4 | . . . 3 1 . . Launcher 2 | . 1 . . . 1 . Special Weapon 1 | . 1 . . . . . Impact Weapon . | . . . . . . . Slashing Weapon . | . . . . . . . Piercing Weapon . | . . . . . . . Special Melee Weapon 1 | . . . 1 . . . Unidentified Prototypes 3 | . . . 2 . 1 . Parts Lost 14 | . 4 1 . . 9 . Power 2 | . . . . . 2 . Propulsion 4 | . 2 . . . 2 . Utility 3 | . . 1 . . 2 . Weapon 5 | . 2 . . . 3 . Highest Loss Streak 9 | . 4 1 . . 9 . To Critical Strikes . | . . . . . . . Average Backups 19 | 4 17 19 19 24 19 24 Power 1 | . 1 1 1 1 1 2 Propulsion 2 | 1 4 4 2 3 1 2 Utility 5 | . 6 8 4 5 3 9 Weapon 9 | 1 4 6 9 13 11 9 Tool/Special . | . . . . . . . Unused Backups 40 | . 7 2 10 . 10 11 Power 6 | . 1 1 . . 3 1 Propulsion 4 | . 2 . 1 . . 1 Utility 22 | . 3 1 6 . 5 7 Weapon 7 | . 1 . 3 . 2 1 Tool/Special 1 | . . . . . . 1 Average Slot Usage (%) 93 | . 98 100 88 88 93 100 Engine 11 | . 14 14 11 11 9 11 Wheel 23 | . 26 28 22 22 21 22 Device 3 | . 3 . 6 1 2 11 Storage 12 | . 14 14 11 11 11 11 Protection 7 | . 6 14 4 9 7 . Energy Gun 5 | . 18 14 . . . . Energy Cannon 1 | . . . 6 . . . Ballistic Gun 21 | . 8 13 15 22 32 44 Ballistic Cannon 3 | . . . 10 11 1 . Special Melee Weapon 2 | . . . . . 5 . Peak Build Rating 51 | 7 9 9 25 25 51 48 Average Rating 19 | 5 8 8 22 24 26 38 On Entrance 15 | . 7 9 9 25 24 33 Naked Turns . | . . . . . . . Heaviest Build 109 | 14 49 50 109 109 109 104 Greatest Support 26 | 20 20 20 20 26 26 26 Greatest Overweight (x) 9 | . 4 2 5 5 9 3 Average Overweight (x) 3 | . 1 2 3 4 4 3 Largest Inventory Capacity 25 | 8 20 20 25 25 25 25 Average Capacity 22 | 7 17 20 22 25 25 25 Most Carried 25 | 8 20 20 25 25 25 25 Average Carried 20 | 4 17 19 21 24 20 25 Final Capacity 25 | 8 20 20 25 25 25 25 Final Carried 25 | 8 20 20 25 25 25 25 Class Distribution -------------------- 39% | Tank 31% | Mutant 22% | Gunner 6% | Scavenger-Tank Dominant Class ---------------- Mutant | -10/Materials Mutant | -10/Mines Tank | -9/Materials Tank | -9/Mines Tank | -9/Exiles Gunner | -8/Mines Resources | -11 -10 -10 -9 -9 -9 -8 ----------- Run | Yrd Mat Min Mat Min Exi Min Matter Collected 4084 | 291 778 232 1198 222 1363 . Remotely . | . . . . . . . Salvage Created 3457 | 181 682 249 1583 189 573 . Parts 251 | 12 42 18 104 17 58 . Haulers Intercepted 6 | . 2 . 4 . . . Recyclers Shooed 2 | . 1 . 1 . . . Parts Field Recycled . | . . . . . . . Retrieved Matter . | . . . . . . . Parts Self-Destructed . | . . . . . . . Prevented . | . . . . . . . Kills | -11 -10 -10 -9 -9 -9 -8 ------- Run | Yrd Mat Min Mat Min Exi Min Combat Hostiles Destroyed 65 | . 13 9 33 6 4 . Guns 29 | . 9 6 11 1 2 . Cannons 27 | . . . 22 5 . . AOE 9 | . 4 3 . . 2 . Classes Destroyed 15 | 2 6 . 4 . 3 . Worker 6 | . 3 1 2 . . . Builder 5 | . . . 4 1 . . Tunneler 6 | 4 . 2 . . . . Hauler 6 | . 2 . 4 . . . Recycler 6 | 1 1 . 3 1 . . Mechanic 2 | . . . 2 . . . Operator 1 | . 1 . . . . . Turret 1 | . . . . . 1 . Watcher 5 | . 2 . 3 . . . Swarmer 25 | . 3 7 12 3 . . Grunt 26 | . 10 2 11 3 . . Duelist 1 | . . . 1 . . . Sentry 9 | . . . 9 . . . Zionite 8 | . . . . . 8 . Assembled 3 | . . . . . 3 . Best Kill Streak 8 | 2 4 5 8 3 6 . Combat Bots Only 5 | . 3 3 5 3 3 . Max Kills in Single Turn 3 | 1 2 2 3 1 1 . Gunslinging . | . . . . . . . Exploded 2 | . 1 2 . . 1 . Melee . | . . . . . . . Uniques/NPCs Destroyed 4 | . . . . . 4 . 8R-AWN (-9/Exiles) EX-HEX (-9/Exiles) EX-BIN (-9/Exiles) EX-DEC (-9/Exiles) Combat | -11 -10 -10 -9 -9 -9 -8 -------- Run | Yrd Mat Min Mat Min Exi Min Hostile Shots Fired 242 | . 49 24 106 23 39 1 Missed 60 | . 11 9 30 6 4 . Hits 182 | . 38 15 76 17 35 1 Melee 6 | . . . 4 . 1 1 Projectile 176 | . 38 15 72 17 34 . Critical Strikes 13 | . . . 3 1 8 1 Damage Taken 3364 | . 510 181 933 145 1482 113 Core 698 | . 135 53 100 39 258 113 Absorbed by Shields 91 | . . . 65 26 . . Redirected to Shielding 20 | . 9 11 . . . . Core Remaining (%) 62 | 100 . 24 . . . . Volleys Fired 276 | 21 60 30 75 13 67 10 Largest 4 | 2 2 2 4 3 4 4 Hottest 240 | 70 100 70 240 96 92 80 Shots Fired 697 | 42 107 58 227 39 184 40 Gun 540 | 42 96 56 100 26 180 40 Cannon 140 | . . . 127 13 . . Launcher 11 | . 5 2 . . 4 . Special 6 | . 6 . . . . . Kinetic 483 | 21 9 28 166 39 180 40 Thermal 173 | 21 63 28 61 . . . Explosive 11 | . 5 2 . . 4 . Electromagnetic 30 | . 30 . . . . . Robot Hit Streak 19 | 7 10 13 12 6 19 5 Robot Miss Streak 8 | 2 3 3 8 4 6 3 Penetration Max 1 | . . . 1 . . . Secondary Targets . | . . . . . . . Shots Hit Robots 397 | 25 64 39 110 21 114 24 Core Hits 172 | 7 33 22 52 10 43 5 Critical Kills 1 | . . . 1 . . . Critical Parts Destroyed 1 | . . . . . 1 . Critical Strikes 28 | 3 6 3 14 1 1 . Burn 12 | 3 6 3 . . . . Destroy 2 | . . . 1 . 1 . Blast 14 | . . . 13 1 . . Melee Attacks 7 | . . . . . 7 . Impact . | . . . . . . . Slashing . | . . . . . . . Piercing . | . . . . . . . Sneak Attacks 7 | . . . . . 7 . Combat Hostiles . | . . . . . . . Follow-up Attacks . | . . . . . . . Damage Inflicted 9941 | 273 1266 615 3849 605 3004 329 Guns 5636 | 273 805 488 733 205 2803 329 Cannons 3516 | . . . 3116 400 . . Explosions 789 | . 461 127 . . 201 . Melee . | . . . . . . . Ramming . | . . . . . . . Kinetic 7264 | 121 45 223 3138 605 2803 329 Thermal 1752 | 152 624 265 711 . . . Explosive 645 | . 317 127 . . 201 . Electromagnetic 280 | . 280 . . . . . Impact . | . . . . . . . Slashing . | . . . . . . . Piercing . | . . . . . . . Highest Corruption . | . . . . . . . Average Corruption . | . . . . . . . Corruption Purged . | . . . . . . . Corruption Blocked . | . . . . . . . Overload Shots . | . . . . . . . Overflow Damage 371 | . 16 . 303 49 3 . Projectiles 352 | . . . 303 49 . . Explosions 19 | . 16 . . . 3 . Melee . | . . . . . . . Knockbacks 12 | . . . 8 4 . . Impact . | . . . . . . . Kinetic 9 | . . . 7 2 . . Secondary 3 | . . . 1 2 . . Self-Inflicted Damage 69 | . 36 . . . 33 . Shots 3 | . 1 . . . 2 . Rammed . | . . . . . . . Targets Rammed . | . . . . . . . Kicked . | . . . . . . . Crushed . | . . . . . . . Highest Temperature 334 | 80 303 88 334 138 268 308 Average Temperature 73 | 38 107 26 62 43 86 157 Received Heat Transfer 639 | . 213 87 285 54 . . Effects 1 | . . . . . 1 . Energy Bleed 1 | . . . . . 1 . Siege Activations . | . . . . . . . Martial Activations . | . . . . . . . Shielding Activations . | . . . . . . . Robots Disrupted . | . . . . . . . Combat Hostiles . | . . . . . . . Robots Corrupted . | . . . . . . . Combat Hostiles . | . . . . . . . Parts Fried 2 | . 2 . . . . . Impact Corruptions 1 | . . . 1 . . . Robots Melted . | . . . . . . . Combat Hostiles . | . . . . . . . Parts Melted 7 | . 5 2 . . . . Heat Transferred 4801 | 666 1989 999 1147 . . . Parts Sabotaged . | . . . . . . . Parts Stolen . | . . . . . . . Parts Stripped . | . . . . . . . Power Chain Reactions 2 | . 2 . . . . . Alert | -11 -10 -10 -9 -9 -9 -8 ------- Run | Yrd Mat Min Mat Min Exi Min Maximum Alert Level 2 | . . . 2 1 . . Low Security (%) 60 | 100 100 100 20 9 . 100 Level 1 21 | . . . 32 90 . . Level 2 18 | . . . 47 . . . Level 3 . | . . . . . . . Level 4 . | . . . . . . . Level 5 . | . . . . . . . High Security . | . . . . . . . Max Security . | . . . . . . . Peak Influence 580 | 10 170 116 580 311 . . Initial 221 | . . 33 16 221 . . Average 181 | 1 78 64 325 252 . . Influence Increases 2173 | 25 513 356 1109 170 . . Destroy 0b10 Robot/C 1320 | . 260 260 680 120 . . Destroy 0b10 Robot/NC 190 | 25 45 20 90 10 . . Destroy Leader 332 | . 68 50 194 20 . . Allied During Kill 20 | . . 13 7 . . . Successful Hack 59 | . 17 . 42 . . . Select Force Hacks 60 | . 60 . . . . . Disable Machine 30 | . . . 30 . . . Destroy Structure 102 | . 33 13 51 5 . . Lose Combat Pursuer 60 | . 30 . 15 15 . . Influence Decreases 2173 | 25 428 398 584 561 177 . Entered New Map 603 | . . 52 27 347 177 . Time Decay 1506 | 25 388 342 537 214 . . Lost Part 44 | . 40 4 . . . . Lost Ally 20 | . . . 20 . . . Squads Dispatched 9 | . 5 . 4 . . . Investigation 6 | . 5 . 1 . . . Extermination . | . . . . . . . Reinforcement 2 | . . . 2 . . . Assault 1 | . . . 1 . . . Garrison . | . . . . . . . Intercept . | . . . . . . . Searches Triggered . | . . . . . . . Construction Impeded . | . . . . . . . Haulers Reinforced . | . . . . . . . Active Scanning Responses . | . . . . . . . Cargo Convoy Interrupts . | . . . . . . . Stealth | -11 -10 -10 -9 -9 -9 -8 --------- Run | Yrd Mat Min Mat Min Exi Min Distress Signals 5 | . . . 4 1 . . Communications Jammed . | . . . . . . . Distress Signals . | . . . . . . . Times Spotted 116 | . 22 14 57 7 15 1 Peak Tracking Total 10 | . 7 3 6 3 10 1 Tactical Retreats 6 | . 1 . 1 1 3 . Traps | -11 -10 -10 -9 -9 -9 -8 ------- Run | Yrd Mat Min Mat Min Exi Min Traps Triggered 5 | . 3 . 2 . . . Indirectly . | . . . . . . . Trap Hack Attempts 48 | . . . 48 . . . Triggered . | . . . . . . . Disarmed . | . . . . . . . Reprogrammed 1 | . . . 1 . . . Reused . | . . . . . . . Traps Extracted . | . . . . . . . Installed . | . . . . . . . Triggered . | . . . . . . . Machines | -11 -10 -10 -9 -9 -9 -8 ---------- Run | Yrd Mat Min Mat Min Exi Min Machines Disabled 11 | . . . 2 . 9 . Max in Single Turn 2 | . . . 1 . 2 . Machines Repaired . | . . . . . . . Machines Dismantled . | . . . . . . . Machines Sabotaged . | . . . . . . . Overloaded Fab Kills . | . . . . . . . Hacking | -11 -10 -10 -9 -9 -9 -8 --------- Run | Yrd Mat Min Mat Min Exi Min Machines Accessed 21 | . 10 . 9 . 2 . Terminals 15 | . 8 . 7 . . . Fabricators . | . . . . . . . Repair Stations . | . . . . . . . Recycling Units 2 | . 2 . . . . . Scanalyzers 2 | . . . 2 . . . Garrison Access . | . . . . . . . Total Hacks 65 | . 22 . 41 . 2 . Successful 39 | . 11 . 26 . 2 . Failed 26 | . 11 . 15 . . . Catastrophic 4 | . 2 . 2 . . . Database Lockouts . | . . . . . . . Manual 38 | . 19 . 18 . 1 . Terminals 47 | . 20 . 27 . . . Fabricators . | . . . . . . . Repair Stations . | . . . . . . . Recycling Units 2 | . 2 . . . . . Scanalyzers 14 | . . . 14 . . . Garrison Access . | . . . . . . . Terminal Hacks 8 | . 2 . 4 . 2 . Record 1 | . . . . . 1 . Part Schematic 1 | . . . 1 . . . Robot Schematic 1 | . 1 . . . . . Prototype ID Bank 2 | . . . 2 . . . Locate Traps 2 | . 1 . 1 . . . Proto ID Catalog 1 | . . . . . 1 . Fabricator Hacks . | . . . . . . . Repair Station Hacks . | . . . . . . . Recycling Unit Hacks . | . . . . . . . Scanalyzer 13 | . . . 13 . . . Insert Component 6 | . . . 6 . . . Analyze 7 | . . . 7 . . . Garrison Access Hacks . | . . . . . . . Unauthorized Hacks 18 | . 9 . 9 . . . Terminals 16 | . 7 . 9 . . . Assimilate 1 | . . . 1 . . . Operators 2 | . 1 . 1 . . . Skim 13 | . 6 . 7 . . . Fabricators . | . . . . . . . Repair Stations . | . . . . . . . Recycling Units 2 | . 2 . . . . . Tunnel 2 | . 2 . . . . . Scanalyzers . | . . . . . . . Garrison Access . | . . . . . . . Data Cores Recovered 1 | . 1 . . . . . Used . | . . . . . . . Hacking Detections 17 | . 8 . 9 . . . Full Trace Events 1 | . 1 . . . . . Feedback Events . | . . . . . . . Feedback Blocked . | . . . . . . . Robot Schematics Acquired 1 | . 1 . . . . . Robots Built . | . . . . . . . Authchips . | . . . . . . . Time . | . . . . . . . Total Robot Build Rating . | . . . . . . . Part Schematics Acquired 7 | . . . 7 . . . Parts Built . | . . . . . . . Authchips . | . . . . . . . Time . | . . . . . . . Total Part Build Rating . | . . . . . . . Parts Repaired . | . . . . . . . Time . | . . . . . . . Parts Recycled . | . . . . . . . Recycled Matter . | . . . . . . . Retrieved Matter . | . . . . . . . Retrieved Components . | . . . . . . . Parts Scanalyzed 6 | . . . 6 . . . Part Schematics Acquired 6 | . . . 6 . . . Parts Damaged 1 | . . . 1 . . . Bothacking | -11 -10 -10 -9 -9 -9 -8 ------------ Run | Yrd Mat Min Mat Min Exi Min Used RIF Installer . | . . . . . . . Robots Hacked 7 | . . . . . 7 . Non-combat 3 | . . . . . 3 . Combat 4 | . . . . . 4 . Robot Hacks Applied 7 | . . . . . 7 . parse_system 7 | . . . . . 7 . Relay Couplers Released . | . . . . . . . Fabnet Peak Effective % . | . . . . . . . Robots Rewired . | . . . . . . . Allies Hacked . | . . . . . . . Hacks Repelled . | . . . . . . . Allies | -11 -10 -10 -9 -9 -9 -8 -------- Run | Yrd Mat Min Mat Min Exi Min Total Allies 1 | . . 1 . . . . Largest Group 1 | . . 1 1 . . . Highest-Rated Group 31 | . . 31 31 . . . Highest-Rated Ally 31 | . . 31 31 . . . Total Orders . | . . . . . . . Ally Attacks 12 | . . 8 4 . . . Total Damage 167 | . . 105 62 . . . Kills 5 | . . 4 1 . . . Allies Corrupted . | . . . . . . . Allies Melted . | . . . . . . . Intel | -11 -10 -10 -9 -9 -9 -8 ------- Run | Yrd Mat Min Mat Min Exi Min Active Infowar (turns) 246 | 78 168 . . . . . Seismic 246 | 78 168 . . . . . Robot Analysis Total . | . . . . . . . Derelict Logs Recovered 2 | . . 2 . . . . Drone Launches . | . . . . . . . Drone Recoveries . | . . . . . . . Exploration | -11 -10 -10 -9 -9 -9 -8 ------------- Run | Yrd Mat Min Mat Min Exi Min Turns Passed 7146 | 191 1262 768 1744 440 2596 145 Spaces Moved 4467 | 144 913 600 939 239 1545 87 Core 4 | 4 . . . . . . Treads . | . . . . . . . Legs . | . . . . . . . Wheels 4463 | 140 913 600 939 239 1545 87 Hover . | . . . . . . . Flight . | . . . . . . . Fastest Speed 50 | 50 80 110 110 150 125 135 Average Speed 130 | 79 106 110 136 154 151 135 Slowest Speed 215 | 80 140 110 155 155 215 135 Overloaded Moves . | . . . . . . . Propulsion Burnouts . | . . . . . . . Robots Hopped . | . . . . . . . Potential Cave-ins . | . . . . . . . Cave-ins Triggered . | . . . . . . . Exploration Rate (%) 61 | 7 97 98 79 43 91 14 Regions Visited 6 Branch Regions 4 Pre-discovered Areas 6 | . 2 2 1 . 1 . Known Exits Taken 2 | . . 1 1 . . . Unknown Exits Taken 4 | 1 1 . . 1 1 . Scrap Searched 2 | . . 1 . 1 . . Spaces Dug 11 | . 6 5 . . . . Terrain Destroyed 131 | . 34 13 48 5 31 . Melee . | . . . . . . . Projectile 66 | . 6 . 48 5 7 . AOE 65 | . 28 13 . . 24 . Terrain Rammed . | . . . . . . . Walls Destroyed . | . . . . . . . Machines Disabled . | . . . . . . . Actions | -11 -10 -10 -9 -9 -9 -8 --------- Run | Yrd Mat Min Mat Min Exi Min Total 5279 | 179 1093 654 1208 275 1758 112 Wait 133 | . 49 8 37 11 17 11 Move 4461 | 143 912 599 938 238 1544 87 Hop . | . . . . . . . Pick Up 125 | 8 28 5 35 4 45 . Fast Attach 16 | 7 1 . 5 . 3 . Attach 33 | . 4 1 6 1 21 . Detach 6 | . . . . . 6 . Swap 68 | . 22 5 23 3 11 4 Drop 106 | . 17 6 41 5 37 . Fire 276 | 21 60 30 75 13 67 10 Melee 7 | . . . . . 7 . Ram . | . . . . . . . Kick . | . . . . . . . Crush . | . . . . . . . Escape Stasis . | . . . . . . . Rewire . | . . . . . . . Trap 48 | . . . 48 . . . Miscellaneous . | . . . . . . . Route ------- -11/Scrapyard -10/Materials (discovered 5 exits: *Mat x3 / [*Min] / Sub) -10/Mines (discovered 2 exits: *Mat x2) -9/Materials (discovered 3 exits: *Mat x2 / *Min) -9/Mines (discovered 3 exits: *Mat / *Exi / [*Zio]) -9/Exiles -8/Mines History --------- Turn | Location | Event 8 | -11/Scrapyard | Discovered new exit (range 15) 192 | -11/Scrapyard | Entered Materials 326 | -10/Materials | Build established: Mutant 423 | -10/Materials | Discovered new exit (range 5) 569 | -10/Materials | Discovered new exit (range 7) 695 | -10/Materials | Lost 4 parts (2n2w) 760 | -10/Materials | Discovered new exit (range 12) 847 | -10/Materials | Core integrity fell below 50% 877 | -10/Materials | Learned 2 Storage zone layouts 952 | -10/Materials | Learned 2 Mines zone layouts 1018 | -10/Materials | Identified exit to Materials 1018 | -10/Materials | Identified exit to Subcaves 1018 | -10/Materials | Learned location of 1 exit from Materials 1076 | -10/Materials | Learned location of 1 exit from Recycling 1178 | -10/Materials | Learned Storage terminal intel 1244 | -10/Materials | Learned Storage trap positions 1454 | -10/Materials | Entered Mines 1526 | -10/Mines | Discovered exit to Materials (range 5) 1539 | -10/Mines | Escorted by a lone wolf Derelict 1559 | -10/Mines | Learned location of Storage (-7) 1601 | -10/Mines | Learned 2 Materials zone layouts 2005 | -10/Mines | Learned location of Zion (-7) 2222 | -10/Mines | Entered Materials 2222 | -9/Materials | Accompanied by 1 ally 2222 | -9/Materials | Evolved 2 slots: Weapon x2 2223 | -9/Materials | Identified exit to Mines 2224 | -9/Materials | Identified exit to Materials 2520 | -9/Materials | Build established: Gunner 3432 | -9/Materials | Loaded intel: 21 trap records 3512 | -9/Materials | Learned Storage garrison access intel 3516 | -9/Materials | Build established: Tank 3536 | -9/Materials | Learned location of 2 exits from Materials 3549 | -9/Materials | Learned Recycling recycling unit intel 3551 | -9/Materials | Learned location of 1 exit from Storage 3552 | -9/Materials | Learned location of 1 exit from Recycling 3572 | -9/Materials | Learned Storage stockpile data 3634 | -9/Materials | Learned location of 1 exit from Recycling 3822 | -9/Materials | First assault squad dispatched 3966 | -9/Materials | Entered Mines 4014 | -9/Mines | Found a damaged Exp. Sensor Array with a note attached 4015 | -9/Mines | Discovered exit to Materials (range 15) 4019 | -9/Mines | Found Prototype Device 4388 | -9/Mines | A Derelict revealed a hidden shortcut to a safe place 4398 | -9/Mines | Deemed a non-threat by the Exiles lab entrance 4399 | -9/Mines | Discovered new exit (range 5) 4406 | -9/Mines | Entered Exiles 4448 | -9/Exiles | Met 8R-AWN 4472 | -9/Exiles | Met EX-HEX 4544 | -9/Exiles | Met EX-DEC 4650 | -9/Exiles | Discovered new exit (range 10) 5085 | -9/Exiles | Visited The Gauntlet 5225 | -9/Exiles | Met EX-BIN 5245 | -9/Exiles | Aligned with FarCom system 5246 | -9/Exiles | Given EX-Vault access code 5285 | -9/Exiles | Opened EX-Vault 5294 | -9/Exiles | Found XL Autogun Array 5300 | -9/Exiles | Found AWS/Autocannon 5309 | -9/Exiles | Found Longsword +1 5339 | -9/Exiles | Warned to stay clear of 0b10 Research branches 6168 | -9/Exiles | Attacked by the Exiles 6275 | -9/Exiles | Destroyed 8R-AWN 6338 | -9/Exiles | Core integrity fell below 50% 6342 | -9/Exiles | Core integrity fell below 20% 6433 | -9/Exiles | Lost 9 parts (2p2n2u3w) 6538 | -9/Exiles | Build established: Gunner 6554 | -9/Exiles | Destroyed EX-HEX 6588 | -9/Exiles | Destroyed EX-BIN 6614 | -9/Exiles | Destroyed EX-DEC 6676 | -9/Exiles | Found Exp. Core Analyzer 7002 | -9/Exiles | Entered Mines 7112 | -8/Mines | CL-ANK came to Exiles' defense 7147 | -8/Mines | Destroyed by CL-ANK with CL-ANK's Mallet Last Messages --------------- 06866_ A-02 Transporter destroyed. 06873_ Acquired 42 matter. 06876_ Acquired 51 matter. 06879_ Acquired Transport Network Coupler. 06930_ Acquired 3 matter. 06966_ Dropped Longsword +1. 06969_ Acquired Imp. Datajack. 06973_ Acquired Ion Cannon. 06979_ Acquired Plasma Cutter. 06983_ Dropped Autogun. 06984_ Dropped Imp. Assault Rifle. 06987_ Acquired Hcp. Storage Unit. 06989_ Acquired Com. Wheel. 06998_ Dropped Ion Cannon. 06998_ Dropped Mak. ECM Suite. 06999_ Acquired Hvy. Assault Cannon. A strange signal echoes through the mines. LOCATION=UNKNOWN GOAL=ESCAPE 07112_ CL-ANK: "I came as fast as I could... Wait, it was you!" Map ----- +----------------------------------------------------+ | | | | | | | | | | | | | | | | | | | | | | | | | | | | | | | | | | | | | | | | | ????????????????????????????????????????? | | ????????????????????????#####???????????? | | ???????????????????????## ##??????????? | | ???????????????????????# #####??????? | | ???????????????????????# b #####??? | | ??????????????????####?##@ ## ## ##?? | | ?????????#######?## ##?# ## # #?? | | ????????## ### #?# #?? | | ???????## ###g ##?? | | ???????# ##### #??? | | ???????# ## ##?## #??? | | ??????# #### #######??# #??? | | ??? #??## #????????# ##??? | | # #???## #????????## ##???? | | ? #????## ##?????????####????? | | ## ?????####??????????????????? | | ?# ???????????????????????????? | | # #???????????????????????????? | | ###???????????????????????????? | | #??????????????????????????????? | | ? #???????????????????????????????? | | ??? #????????????????????????????????? | | ?????? ?????????????????????????????????? | | ????????????????????????????????????????? | | ????????????????????????????????????????? | | ????????????????????????????????????????? | | ????????????????????????????????????????? | | ????????????????????????????????????????? | | ????????????????????????????????????????? | | ????????????????????????????????????????? | +----------------------------------------------------+ Best States ------------- Heat Dissipation 42 Energy Generation 18 Energy Capacity 310 Matter Stores 300 Matter Capacity 500 Sight Range 16 Terrain Scan Density 10 Armor Coverage 150 Core Shielding 20 Weapon Cycling 25 Evasion (%) 44 Targeting Accuracy 5 Item Schematics ----------------- Assault Rifle | -9/Materials | Hacked Hvy. Assault Cannon | -9/Materials | Scanalyzed Hcp. Storage Unit | -9/Materials | Scanalyzed Lgt. Armor Plating | -9/Materials | Scanalyzed Wheel | -9/Materials | Scanalyzed Hvy. Assault Rifle | -9/Materials | Scanalyzed Hcp. Matter Pod | -9/Materials | Scanalyzed Robot Schematics ------------------ M-13 Machinist | -10/Materials | Hacked Fabricated ------------ Nothing Repaired ---------- Nothing Alien Tech Used ----------------- None Achievements -------------- None Challenges ------------ None Game ------ Seed NovaPhaseShotgun Manual? 0 Play Time 00:50:16 Cumulative 1114.4 hours Start 2025.07.24 @ 23:38:48 End 2025.07.25 @ 00:28:05 Sessions 1 Manual Loads 0 Difficulty Rogue Special Mode None Game No. 556 Rogue 556 Adventurer 0 Explorer 0 Win Type - Total 23 Types 10/4/3/0/1/1/2/2/0/0 Lore% 90 Gallery% 89 Achievement% 83 Wizard Run 0 Options --------- Layout 0 ASCII 0 Keyboard 0 Movement Numpad Keybinds 0 Fullscreen 2 Font 24/Smallcaps Map View 76x50 Zoom Use 0% Tactical HUD 1 Map Filters NONE Filters SHIFT_HUE(315) Steam 1 RUN: 20b59117-c862-477a-b15c-0af673c51484